Cogmind - Beta 10.1 *** ADVENTURER MODE // 2020.09.25 @ 18:46:22 Player: Skitgris Result: Self-destructed Performance ------------- Evolutions (1) 500 Regions Visited (3) 600 Robots Destroyed (51) 255 Value Destroyed (1134) 1134 Prototype IDs (0) 0 Alien Tech Used (0) 0 Bonus (22) 22 TOTAL SCORE: 2511 Bonus ------- High Alert Combat Kills 22 Cogmind --------- Core Integrity 183/400 Matter 300/300 Energy 35/100 System Corruption 0% Temperature Cool (112) Movement Core (600) Ox11 Location -9/Materials Parts ------- > --- POWER (1) -------- (None) > --- PROPULSION (2) --- (None) > --- UTILITY (4) ------ High-capacity Storage Unit Utility Shielding > --- WEAPON (2) ------- Plasma Flamer > --- INVENTORY (12) --- Ion Engine Improved Ion Engine Titanium Leg Compact Battery (300) Advanced Signal Interpreter Improved Terrain Scan Processor Melee Analysis Suite Peak State ------------ > --- POWER ------------ Light Angular Momentum Engine > --- PROPULSION ------- Aluminum Leg Aluminum Leg > --- UTILITY ---------- High-capacity Storage Unit Utility Shielding > --- WEAPON ----------- Small Laser Particle Gun > --- INVENTORY -------- Ion Engine Improved Ion Engine Titanium Leg Compact Battery Advanced Signal Interpreter Improved Terrain Scan Processor Melee Analysis Suite Small Laser Beamcaster Light Assault Rifle Light Assault Rifle Plasma Flamer [Rating: 15] Favorites ----------- Power Ion Engine Engine Ion Engine Propulsion Aluminum Leg Leg Aluminum Leg Utility Improved Terrain Scanner Device Improved Terrain Scanner Storage High-capacity Storage Unit Protection Utility Shielding Weapon Medium Laser Energy Gun Medium Laser Ballistic Gun Light Assault Rifle Ballistic Cannon Light Cannon Special Weapon Mining Laser Build | -11 -10 -10 -9 ------- Run | Scr Mat Min Mat Slots Evolved 2 | . . . 2 Power . | . . . . Propulsion . | . . . . Utility 2 | . . . 2 Weapon . | . . . . Parts Attached 45 | 7 4 20 14 Power 6 | 1 . 4 1 Engine 6 | 1 . 4 1 Core . | . . . . Reactor . | . . . . Propulsion 13 | 2 1 8 2 Treads . | . . . . Leg 13 | 2 1 8 2 Wheel . | . . . . Hover . | . . . . Flight . | . . . . Utility 6 | 2 1 1 2 Device 2 | 1 . . 1 Storage 3 | 1 1 1 . Processor . | . . . . Hackware . | . . . . Protection 1 | . . . 1 Artifact . | . . . . Weapon 20 | 2 2 7 9 Energy Gun 13 | 2 2 3 6 Energy Cannon . | . . . . Ballistic Gun 4 | . . 2 2 Ballistic Cannon 1 | . . 1 . Launcher . | . . . . Special Weapon 2 | . . 1 1 Impact Weapon . | . . . . Slashing Weapon . | . . . . Piercing Weapon . | . . . . Special Melee Weapon . | . . . . Unidentified Prototypes . | . . . . Parts Lost 15 | . 1 2 12 Power 1 | . . . 1 Propulsion 2 | . . . 2 Utility 2 | . . . 2 Weapon 10 | . 1 2 7 Highest Loss Streak 9 | . 1 2 9 Average Slot Usage (%) 95 | . 99 100 73 Engine 12 | . 14 14 7 Leg 26 | . 28 28 18 Device 12 | . 14 14 6 Storage 13 | . 14 14 11 Protection 1 | . . . 10 Energy Gun 18 | . 27 17 11 Ballistic Gun 3 | . . 4 4 Ballistic Cannon 3 | . . 4 2 Special Weapon 1 | . . 1 . Naked Turns . | . . . . Heaviest Build 46 | 13 18 42 46 Greatest Support 20 | 20 20 20 20 Greatest Overweight (x) 4 | 4 . 2 2 Average Overweight (x) 1 | 1 . 1 1 Largest Inventory Capacity 12 | 6 8 12 12 Average Capacity 10 | 5 6 11 12 Most Carried 12 | 6 8 12 12 Average Carried 10 | 4 6 11 10 Final Capacity 12 | 6 8 12 12 Final Carried 12 | 4 8 12 7 Class Distribution -------------------- 59% | Mutant 40% | Scavenger-Mutant Dominant Class ---------------- Mutant | -10/Materials Mutant | -10/Mines Scavenger-Mutant | -9/Materials Resources | -11 -10 -10 -9 ----------- Run | Scr Mat Min Mat Matter Collected 905 | 270 30 353 252 Remotely . | . . . . Salvage Created 1654 | 142 203 547 762 Parts 106 | 9 18 34 45 Haulers Intercepted . | . . . . Recyclers Shooed 2 | . 1 . 1 Parts Field Recycled . | . . . . Retrieved Matter . | . . . . Parts Self-Destructed . | . . . . Prevented . | . . . . Kills | -11 -10 -10 -9 ------- Run | Scr Mat Min Mat Combat Hostiles Destroyed 37 | . 5 17 15 Guns 27 | . 5 8 14 Cannons 10 | . . 9 1 Classes Destroyed 8 | 2 5 . 1 Worker 3 | . 1 1 1 Builder 2 | . 1 . 1 Tunneler 3 | 2 1 . . Recycler 4 | 1 . . 3 Watcher 2 | . 1 . 1 Swarmer 12 | . 3 3 6 Grunt 23 | . 2 14 7 Sentry 2 | . . . 2 Best Kill Streak 7 | 1 4 5 7 Combat Bots Only 6 | . 3 4 6 Max Kills in Single Turn 2 | 1 1 1 2 Gunslinging . | . . . . Exploded . | . . . . Melee . | . . . . Uniques/NPCs Destroyed . | . . . . Combat | -11 -10 -10 -9 -------- Run | Scr Mat Min Mat Damage Taken 1800 | . 206 615 979 Core 354 | . 48 89 217 Absorbed by Shields . | . . . . Core Remaining (%) 72 | 100 . 45 . Volleys Fired 173 | 5 23 78 67 Largest 2 | 2 2 2 2 Hottest 115 | 90 100 100 115 Shots Fired 297 | 9 42 136 110 Gun 225 | 9 42 82 92 Cannon 50 | . . 35 15 Launcher . | . . . . Special 22 | . . 19 3 Kinetic 120 | . . 70 50 Thermal 177 | 9 42 66 60 Explosive . | . . . . Electromagnetic . | . . . . Robot Hit Streak 29 | 6 8 29 12 Robot Miss Streak 6 | 1 2 2 6 Penetration Max . | . . . . Secondary Targets 2 | . . 1 1 Max Gunslinging Chain 1 | . . 1 1 Shots Hit Robots 195 | 7 27 84 77 Core Hits 87 | 4 15 34 34 Critical Hits 1 | . . . 1 Critical Kills . | . . . . Critical Parts Destroyed 1 | . . . 1 Melee Attacks . | . . . . Impact . | . . . . Slashing . | . . . . Piercing . | . . . . Sneak Attacks . | . . . . Combat Hostiles . | . . . . Follow-up Attacks . | . . . . Damage Inflicted 2391 | 95 322 1005 969 Guns 1720 | 95 322 549 754 Cannons 643 | . . 456 187 Explosions . | . . . . Melee . | . . . . Ramming . | . . . . Kinetic 1075 | . . 673 402 Thermal 1316 | 95 322 332 567 Explosive . | . . . . Electromagnetic . | . . . . Impact . | . . . . Slashing . | . . . . Piercing . | . . . . Highest Corruption . | . . . . Average Corruption . | . . . . Corruption Purged . | . . . . Overload Shots . | . . . . Overflow Damage . | . . . . Projectiles . | . . . . Explosions . | . . . . Melee . | . . . . Knockbacks 6 | . . 5 1 Impact . | . . . . Kinetic 5 | . . 4 1 Secondary 1 | . . 1 . Self-Inflicted Damage . | . . . . Shots . | . . . . Rammed . | . . . . Targets Rammed . | . . . . Kicked . | . . . . Crushed . | . . . . Highest Temperature 461 | 30 208 220 461 Average Temperature 79 | 15 62 65 116 Received Heat Transfer 816 | . 78 354 384 Effects 4 | . . 2 2 Shutdowns 1 | . . . 1 Energy Bleed 1 | . . . 1 Interference 2 | . . 2 . Siege Activations . | . . . . Robots Corrupted . | . . . . Combat Hostiles . | . . . . Parts Fried . | . . . . Impact Corruptions . | . . . . Robots Melted . | . . . . Combat Hostiles . | . . . . Parts Melted 8 | . 4 1 3 Heat Transferred 3361 | 248 891 880 1342 Parts Sabotaged . | . . . . Parts Stolen . | . . . . Parts Stripped . | . . . . Power Chain Reactions . | . . . . Missiles Intercepted . | . . . . Alert | -11 -10 -10 -9 ------- Run | Scr Mat Min Mat Peak Influence 419 | 15 181 220 419 Initial 72 | . 8 59 72 Average 100 | 7 84 73 248 Maximum Alert Level 2 | . . 1 2 Low Security (%) 84 | 100 100 93 28 Level 1 14 | . . 6 64 Level 2 1 | . . . 7 Level 3 . | . . . . Level 4 . | . . . . Level 5 . | . . . . High Security . | . . . . Max Security . | . . . . Squads Dispatched 2 | . 1 . 1 Investigation 1 | . 1 . . Extermination . | . . . . Reinforcement 1 | . . . 1 Assault . | . . . . Garrison . | . . . . Intercept . | . . . . Construction Impeded . | . . . . Haulers Reinforced . | . . . . Stealth | -11 -10 -10 -9 --------- Run | Scr Mat Min Mat Distress Signals 7 | . 1 3 3 Communications Jammed . | . . . . Distress Signals . | . . . . Times Spotted 58 | . 13 19 26 Peak Tracking Total 10 | . 3 3 10 Tactical Retreats 4 | . 2 1 1 Traps | -11 -10 -10 -9 ------- Run | Scr Mat Min Mat Traps Triggered . | . . . . Indirectly . | . . . . Trap Hack Attempts . | . . . . Triggered . | . . . . Disarmed . | . . . . Reprogrammed . | . . . . Reused . | . . . . Traps Extracted . | . . . . Installed . | . . . . Triggered . | . . . . Machines | -11 -10 -10 -9 ---------- Run | Scr Mat Min Mat Machines Disabled . | . . . . Max in Single Turn . | . . . . Machines Sabotaged . | . . . . Garrisons Compromised . | . . . . Overloaded Fab Kills . | . . . . Fab Network Shutdowns . | . . . . Hacking | -11 -10 -10 -9 --------- Run | Scr Mat Min Mat Machines Accessed 3 | . 2 1 . Terminals 2 | . 2 . . Fabricators . | . . . . Repair Stations . | . . . . Recycling Units . | . . . . Scanalyzers . | . . . . Garrison Access . | . . . . Total Hacks 5 | . 4 1 . Successful 4 | . 3 1 . Failed 1 | . 1 . . Catastrophic . | . . . . Database Lockouts . | . . . . Manual 4 | . 4 . . Terminals 4 | . 4 . . Fabricators . | . . . . Repair Stations . | . . . . Recycling Units . | . . . . Scanalyzers . | . . . . Garrison Access . | . . . . Terminal Hacks 2 | . 1 1 . Open Door 1 | . . 1 . Branch Access Points 1 | . 1 . . Fabricator Hacks . | . . . . Repair Station Hacks . | . . . . Recycling Unit Hacks . | . . . . Scanalyzer . | . . . . Garrison Access Hacks . | . . . . Unauthorized Hacks 2 | . 2 . . Terminals 2 | . 2 . . Track 1 | . 1 . . Botnet 1 | . 1 . . Fabricators . | . . . . Repair Stations . | . . . . Recycling Units . | . . . . Scanalyzers . | . . . . Garrison Access . | . . . . Data Cores Recovered . | . . . . Used . | . . . . Hacking Detections 2 | . 2 . . Full Trace Events 1 | . 1 . . Feedback Events . | . . . . Feedback Blocked . | . . . . Robot Schematics Acquired . | . . . . Robots Built . | . . . . Matter . | . . . . Time . | . . . . Total Robot Build Rating . | . . . . Part Schematics Acquired . | . . . . Parts Built . | . . . . Matter . | . . . . Time . | . . . . Total Part Build Rating . | . . . . Parts Repaired . | . . . . Time . | . . . . Parts Recycled . | . . . . Recycled Matter . | . . . . Retrieved Matter . | . . . . Retrieved Components . | . . . . Parts Scanalyzed . | . . . . Part Schematics Acquired . | . . . . Parts Damaged . | . . . . Bothacking | -11 -10 -10 -9 ------------ Run | Scr Mat Min Mat Used RIF Installer . | . . . . Robots Hacked . | . . . . Non-combat . | . . . . Combat . | . . . . Robot Hacks Applied . | . . . . Relay Couplers Released . | . . . . Robots Rewired . | . . . . Allies Hacked . | . . . . Hacks Repelled . | . . . . Allies | -11 -10 -10 -9 -------- Run | Scr Mat Min Mat Total Allies . | . . . . Largest Group . | . . . . Highest-Rated Group . | . . . . Highest-Rated Ally . | . . . . Total Orders . | . . . . Ally Attacks . | . . . . Total Damage . | . . . . Kills . | . . . . Allies Corrupted . | . . . . Allies Melted . | . . . . Intel | -11 -10 -10 -9 ------- Run | Scr Mat Min Mat Robot Analysis Total . | . . . . Derelict Logs Recovered 2 | . . 2 . Drone Launches . | . . . . Drone Recoveries . | . . . . Exploration | -11 -10 -10 -9 ------------- Run | Scr Mat Min Mat Turns Passed 1924 | 125 345 1138 316 Spaces Moved 775 | 63 198 453 61 Core 52 | 52 . . . Treads . | . . . . Legs 723 | 11 198 453 61 Wheels . | . . . . Hover . | . . . . Flight . | . . . . Fastest Speed 50 | 50 120 120 150 Average Speed 161 | 148 120 179 173 Slowest Speed 250 | 250 120 180 180 Overloaded Moves . | . . . . Propulsion Burnouts . | . . . . Robots Hopped . | . . . . Cave-ins Triggered . | . . . . Exploration Rate (%) 33 | 4 46 74 10 Regions Visited 3 Branch Regions 1 Pre-discovered Areas 1 | . . 1 . Known Exits Taken 1 | . 1 . . Unknown Exits Taken 2 | 1 . 1 . Scrap Searched 1 | . . 1 . Spaces Dug . | . . . . Terrain Destroyed 3 | . . 3 . Melee . | . . . . Projectile 3 | . . 3 . AOE . | . . . . Terrain Rammed . | . . . . Walls Destroyed . | . . . . Machines Disabled . | . . . . Actions | -11 -10 -10 -9 --------- Run | Scr Mat Min Mat Total 1135 | 85 265 618 167 Wait 88 | . 31 39 18 Move 772 | 62 197 452 61 Hop . | . . . . Pick Up 31 | 11 6 11 3 Fast Attach . | . . . . Attach 18 | 7 1 2 8 Detach . | . . . . Swap 27 | . 3 18 6 Drop 26 | . 4 18 4 Fire 173 | 5 23 78 67 Melee . | . . . . Ram . | . . . . Kick . | . . . . Crush . | . . . . Escape Stasis . | . . . . Rewire . | . . . . Trap . | . . . . Miscellaneous . | . . . . Route ------- -11/Scrapyard -10/Materials (discovered 2 exits: [*Mat] / *Min) -10/Mines -9/Materials (discovered 1 exit: Mat) History --------- Turn | Location | Event 21 | -11/Scrapyard | Discovered new exit (range 16) 126 | -11/Scrapyard | Entered Materials 171 | -10/Materials | Identified exit to Mines 182 | -10/Materials | Discovered new exit (range 16) 303 | -10/Materials | Build established: Mutant 471 | -10/Materials | Entered Mines 474 | -10/Mines | Met a Derelict who couldn't figure out how to use a Trap Extractor 481 | -10/Mines | Met a Derelict bent on vengeance 645 | -10/Mines | Excavation squad dispatched 645 | -10/Mines | A large section of the Mines collapsed 895 | -10/Mines | Excavation squad dispatched 1131 | -10/Mines | A weapon hastily lodged in a ceiling crevice suddenly fell to the ground 1145 | -10/Mines | Excavation squad dispatched 1234 | -10/Mines | Learned location of Zion (-7) 1351 | -10/Mines | Learned location of 1 exit from Materials 1361 | -10/Mines | Build established: Scavenger-Mutant 1395 | -10/Mines | Excavation squad dispatched 1426 | -10/Mines | Found a hidden stash of uninstalled traps 1538 | -10/Mines | Core integrity fell below 50% 1589 | -10/Mines | Discovered new exit (range 9) 1609 | -10/Mines | Entered Materials 1609 | -9/Materials | Evolved 2 slots: Utility x2 1610 | -9/Materials | Identified exit to Materials 1731 | -9/Materials | Lost 3 parts (2u1w) 1922 | -9/Materials | Core integrity fell below 50% 1925 | -9/Materials | Self-destructed Last Messages --------------- 01903_ Y-45 Defender destroyed. 01904_ Acquired 1 matter. 01905_ K-01 Serf collects debris. 01906_ Acquired 1 matter. 01906_ K-01 Serf collects debris. 01908_ Acquired 1 matter. 01909_ K-01 Serf collects debris. 01910_ Acquired 1 matter. 01910_ K-01 Serf collects debris. 01912_ Acquired 1 matter. 01912_ K-01 Serf collects debris. 01913_ Acquired 1 matter. 01914_ K-01 Serf collects debris. 01915_ Acquired 1 matter. 01915_ Lgt. Assault Rifle destroyed. 01915_ K-01 Serf collects debris. 01917_ Acquired 10 matter. 01917_ K-01 Serf collects debris. 01921_ R-06 Scavenger collects Aluminum Leg. 01922_ K-01 Serf collects debris. Map ----- +----------------------------------------------------+ | ?????????#! # #???# #????????????????????? | | ?????????# """ # #???# #??? ????????????????? | | ?????????# """ + #??## #??#?????????????????? | | ?????????# """ # #???# ###???#??????????????? | | ?????????# # #?#?# ?????????#?????????? | | ?????????######## ##??# #?#? ????????????????? | | ??? ???????##### ####= #?##?????????????????? | | ????? #????????????????????? | | ???????## ###### #????????????????????? | | ??????????#?#?## #????#??????#????????? | | ???????????????# #### % #???####?????????????? | | ???????????????#######??#%*%#? ???????????? | | ??????????????#?#????? ?#= #?" ????????????? | | ???????????? ???????????+% %#"Y """????????????? | | ????????????????????????#=%%#"" """ ???????????? | | ????????????????????????#% +! """ #??????????? | | ?????????????????#??????#!% # """ ???????????? | | ?????????????? ?????????# [=# """????????????? | | ????????????????????????# #? #??????????? | | ???????##???????#???????# #############????????? | | ?????? ##############% u ???????? | | ?????? ???????? | | ?????? %r ???????? | | ?????? * %!#############????????? | | ????????????###### #####g#####?????????????????? | | ?????????????????# # =@%%% #?????????????????? | | ?????????????????# # !%[%! #?????????????????? | | ?????????????????# # s =[ #?????????????????? | | ?????????????????# # #?????????????????? | | ?????????????????# + #?????????????????? | | ?????????????????# # #?????????????????? | | ?????????????????# # k #?????????????????? | | ?????????????????# # k #?????????????????? | | ?????????????????# #######+###?????????????????? | | ?????????????????+ ????????????????????????????? | | ?????????????????# ????????????????????????????? | | ?????????????????# ????????????????????????????? | | ?????????????????# ????????????????????????????? | | ????????????????? ????????????????????????????? | | ?????????????????? ????????????????????????????? | | ?????????????????????????????????????????????????? | | ?????????????????????????????????????????????????? | | ?????????????????????????????????????????????????? | | ?????????????????????????????????????????????????? | | ?????????????????????????????????????????????????? | | ?????????????????????????????????????????????????? | | ?????????????????????????????????????????????????? | | ?????????????????????????????????????????????????? | | ?????????????????????????????????????????????????? | | ?????????????????????????????????????????????????? | +----------------------------------------------------+ Best States ------------- Heat Dissipation 28 Energy Generation 18 Energy Capacity 250 Matter Stores 300 Matter Capacity 300 Sight Range 16 Terrain Scan Range 16 Terrain Scan Density 10 Resistance: KI 20 Resistance: TH 20 Resistance: EX 20 Resistance: EM 20 Resistance: I 20 Resistance: S 20 Resistance: P 20 Utility Shielding 33 Evasion (%) 40 Particle Charging 15 Offensive Hacking 10 Item Schematics ----------------- None Robot Schematics ------------------ None Fabricated ------------ Nothing Alien Tech Used ----------------- None Achievements -------------- None Challenges ------------ None Game ------ Seed AccelerationRecoilMultirail Manual? 0 Play Time 00:24:07 Cumulative 24.0 hours Start 2020.09.25 @ 18:20:41 End 2020.09.25 @ 18:46:22 Sessions 1 Manual Loads 0 Difficulty Adventurer Special Mode None Game No. 35 Rogue 17 Adventurer 18 Explorer 0 Win Type - Total 0 Types 0/0/0/0/0/0/0/0/0 Lore% 9 Gallery% 27 Achievement% 21 Wizard Run 0 Options --------- ASCII 0 Keyboard 0 Movement Mouse Keybinds 0 Fullscreen 2 Font 36/X11 Map View 76x50 Tactical HUD 1 Map Filters NONE Filters NONE Steam 1 RUN: d24dd5cc-0153-4040-a12c-e4ad521fa5af